fUSD/lending_fUSD_20250117
["ID","MTS","AMOUNT","RATE_DAILY","PERIOD"]
[349369800,1737139844059,-500.0,0.00023199,2]
[349369801,1737139844069,-269.55,0.00023199,2]
[349369802,1737139844078,-500.0,0.00023199,2]
[349369803,1737139844088,-500.0,0.00023199,2]
[349369804,1737139844097,-500.0,0.00023199,2]
[349369805,1737139844106,-500.0,0.00023199,2]
[349369806,1737139844116,-500.0,0.00023199,2]
[349369807,1737139844125,-500.0,0.00023199,2]
[349369808,1737139844135,-500.0,0.00023199,2]
[349369809,1737139844145,-500.0,0.00023199,2]
[349369810,1737139844154,-500.0,0.00023199,2]
[349369811,1737139844163,-209.53,0.00023199,2]
[349369812,1737139844173,-500.0,0.00023199,2]
[349369813,1737139844183,-528.47,0.00023199,2]
[349369814,1737139844194,-528.47,0.00023199,2]
[349369815,1737139844203,-500.0,0.00023199,2]
[349369816,1737139844212,-528.47,0.00023199,2]
[349369817,1737139844221,-500.0,0.00023199,2]
[349369818,1737139844234,-500.0,0.00023199,2]
[349369819,1737139844244,-528.47,0.00023199,2]
[349369820,1737139844253,-528.47,0.00023199,2]
[349369821,1737139844262,-500.0,0.00023199,2]
[349369822,1737139844273,-528.47,0.00023199,2]
[349369823,1737139844283,-500.0,0.00023199,2]
[349369824,1737139844292,-528.47,0.00023199,2]
[349369825,1737139844303,-177.99438054,0.00023199,2]
[349369826,1737139844312,-528.47,0.00023199,2]
[349369827,1737139844322,-528.47,0.00023199,2]
[349369828,1737139844331,-528.47,0.00023199,2]
[349369829,1737139844340,-528.47,0.00023199,2]
[349369830,1737139844349,-528.47,0.00023199,2]
[349369831,1737139844359,-528.47,0.00023199,2]
[349369832,1737139844371,-528.47,0.00023199,2]
[349369833,1737139844381,-528.47,0.00023199,2]
[349369834,1737139844392,-528.47,0.00023199,2]
[349369835,1737139844401,-528.47,0.00023199,2]
[349369836,1737139844410,-528.47,0.00023199,2]
[349369837,1737139844420,-528.47,0.00023199,2]
[349369838,1737139844431,-504.48,0.00023199,2]
[349369839,1737139844441,-528.47,0.00023199,2]
[349369840,1737139844451,-528.47,0.00023199,2]
[349369841,1737139844461,-528.47,0.00023199,2]
[349369842,1737139844470,-528.6,0.00023199,2]
[349369843,1737139844482,-499.7,0.00023199,2]
[349369844,1737139844491,-500.0,0.00023199,2]
[349369845,1737139844500,-606.78,0.00023199,2]
[349369846,1737139844510,-500.0,0.00023199,2]
[349369847,1737139844519,-500.0,0.00023199,2]
[349369848,1737139844528,-500.0,0.00023199,2]
[349369849,1737139844539,-500.0,0.00023199,2]
[349369850,1737139844549,-500.0,0.00023199,2]
[349369851,1737139844558,-500.0,0.00023199,2]
[349369852,1737139844568,-500.0,0.00023199,2]
[349369853,1737139844578,-500.0,0.00023199,2]
[349369854,1737139844588,-500.0,0.00023199,2]
[349369855,1737139844597,-516.44,0.00023199,2]
[349369856,1737139844607,-500.0,0.00023199,2]
[349369857,1737139844616,-500.0,0.00023199,2]
[349369858,1737139844625,-500.0,0.00023199,2]
[349369859,1737139844634,-500.0,0.00023199,2]
[349369860,1737139844644,-500.0,0.00023199,2]
[349369861,1737139844653,-500.0,0.00023199,2]
[349369862,1737139844662,-500.0,0.00023199,2]
[349369863,1737139844671,-500.0,0.00023199,2]
[349369864,1737139844680,-500.0,0.00023199,2]
[349369865,1737139844690,-500.0,0.00023199,2]
[349369866,1737139844699,-500.0,0.00023199,2]
[349369867,1737139844708,-500.0,0.00023199,2]
[349369868,1737139844718,-591.78,0.00023199,2]
[349369869,1737139844727,-500.0,0.00023199,2]
[349369870,1737139844736,-267.51,0.00023199,2]
[349369871,1737139844746,-500.0,0.00023199,2]
[349369872,1737139844756,-500.0,0.00023199,2]
[349369873,1737139844766,-500.0,0.00023199,2]
[349369874,1737139844775,-500.0,0.00023199,2]
[349369875,1737139844784,-500.0,0.00023199,2]
[349369876,1737139844793,-500.0,0.00023199,2]
[349369877,1737139844803,-500.0,0.00023199,2]
[349369878,1737139844812,-462.42,0.00023199,2]
[349369879,1737139844821,-500.0,0.00023199,2]
[349369880,1737139844830,-500.0,0.00023199,2]
[349369881,1737139844839,-500.0,0.00023199,2]
[349369882,1737139844849,-500.0,0.00023199,2]
[349369883,1737139844859,-500.0,0.00023199,2]
[349369884,1737139844869,-500.0,0.00023199,2]
[349369885,1737139844880,-500.0,0.00023199,2]
[349369886,1737139844889,-500.0,0.00023199,2]
[349369887,1737139844899,-304.72,0.00023199,2]
[349369888,1737139844908,-500.0,0.00023199,2]
[349369889,1737139844917,-185.59,0.00023199,2]
[349369890,1737139844927,-500.0,0.00023199,2]
[349369891,1737139844936,-500.0,0.00023199,2]
[349369892,1737139844946,-500.0,0.00023199,2]
[349369893,1737139844955,-500.0,0.00023199,2]
[349369894,1737139844965,-500.0,0.00023199,2]
[349369895,1737139844974,-500.0,0.00023199,2]
[349369896,1737139844984,-357.65,0.00023199,2]
[349369897,1737139844993,-500.0,0.00023199,2]
[349369898,1737139845003,-215.71258728,0.00023199,2]
[349369899,1737139845012,-217.02,0.00023199,2]
[349369900,1737139845022,-500.0,0.00023199,2]
[349369901,1737139845031,-423.06,0.00023199,2]
[349369902,1737139845041,-500.0,0.00023199,2]
[349369903,1737139845050,-500.0,0.00023199,2]
[349369904,1737139845060,-500.0,0.00023199,2]
[349369905,1737139845069,-296.7322571,0.00023199,2]
[349369906,1737139845078,-312.93,0.00023199,2]
[349369907,1737139845087,-500.0,0.00023199,2]
[349369908,1737139845096,-500.0,0.00023199,2]
[349369909,1737139845106,-500.0,0.00023199,2]
[349369910,1737139845115,-500.0,0.00023199,2]
[349369911,1737139845124,-500.0,0.00023199,2]
[349369912,1737139845133,-500.0,0.00023199,2]
[349369913,1737139845143,-500.0,0.00023199,2]
[349369914,1737139845152,-500.0,0.00023199,2]
[349369915,1737139845161,-295.58,0.00023199,2]
[349369916,1737139845170,-500.0,0.00023199,2]
[349369917,1737139845179,-500.0,0.00023199,2]
[349369918,1737139845188,-500.0,0.00023199,2]
[349369919,1737139845197,-500.0,0.00023199,2]
[349369920,1737139845206,-500.0,0.00023199,2]
[349369921,1737139845216,-500.0,0.00023199,2]
[349369922,1737139845226,-500.0,0.00023199,2]
[349369923,1737139845238,-500.0,0.00023199,2]
[349369924,1737139845247,-500.0,0.00023199,2]
[349369925,1737139845258,-500.0,0.00023199,2]
[349369926,1737139845269,-500.0,0.00023199,2]
[349369927,1737139845279,-500.0,0.00023199,2]
[349369928,1737139845288,-571.54,0.00023199,2]
[349369929,1737139845297,-500.0,0.00023199,2]
[349369930,1737139845308,-500.0,0.00023199,2]
[349369931,1737139845318,-500.0,0.00023199,2]
[349369932,1737139845327,-500.0,0.00023199,2]
[349369933,1737139845337,-500.0,0.00023199,2]
[349369934,1737139845346,-500.0,0.00023199,2]
[349369935,1737139845356,-500.0,0.00023199,2]
[349369936,1737139845365,-500.0,0.00023199,2]
[349369937,1737139845374,-500.0,0.00023199,2]
[349369938,1737139845383,-500.0,0.00023199,2]
[349369939,1737139845393,-577.01,0.00023199,2]
[349369940,1737139845402,-500.0,0.00023199,2]
[349369941,1737139845411,-500.0,0.00023199,2]
[349369942,1737139845420,-500.0,0.00023199,2]
[349369943,1737139845430,-500.0,0.00023199,2]
[349369944,1737139845439,-500.0,0.00023199,2]
[349369945,1737139845450,-500.0,0.00023199,2]
[349369946,1737139845459,-449.26,0.00023199,2]
[349369947,1737139845469,-500.0,0.00023199,2]
[349369948,1737139845478,-500.0,0.00023199,2]
[349369949,1737139845487,-500.0,0.00023199,2]
[349369950,1737139845496,-500.0,0.00023199,2]
[349369951,1737139845506,-500.0,0.00023199,2]
[349369952,1737139845515,-500.0,0.00023199,2]
[349369953,1737139845524,-500.0,0.00023199,2]
[349369954,1737139845533,-500.0,0.00023199,2]
[349369955,1737139845542,-274.1,0.00023199,2]
[349369956,1737139845551,-500.0,0.00023199,2]
[349369957,1737139845560,-500.0,0.00023199,2]
[349369958,1737139845570,-500.0,0.00023199,2]
[349369959,1737139845581,-500.0,0.00023199,2]
[349369960,1737139845590,-500.0,0.00023199,2]
[349369961,1737139845599,-500.0,0.00023199,2]
[349369962,1737139845609,-500.0,0.00023199,2]
[349369963,1737139845618,-500.0,0.00023199,2]
[349369964,1737139845627,-500.0,0.00023199,2]
[349369965,1737139845636,-468.41,0.00023199,2]
[349369966,1737139845646,-500.0,0.00023199,2]
[349369967,1737139845655,-500.0,0.00023199,2]
[349369968,1737139845665,-500.0,0.00023199,2]
[349369969,1737139845675,-500.0,0.00023199,2]
[349369970,1737139845686,-405.51,0.00023199,2]
[349369971,1737139845695,-500.0,0.00023199,2]
[349369972,1737139845706,-500.0,0.00023199,2]
[349369973,1737139845716,-500.0,0.00023199,2]
[349369974,1737139845725,-499.8,0.00023199,2]
[349369975,1737139845736,-568.79,0.00023199,2]
[349369976,1737139845746,-500.0,0.00023199,2]
[349369977,1737139845756,-568.79,0.00023199,2]
[349369978,1737139845766,-500.0,0.00023199,2]
[349369979,1737139845777,-568.79,0.00023199,2]
[349369980,1737139845787,-500.0,0.00023199,2]
[349369981,1737139845796,-442.39,0.00023199,2]
[349369982,1737139845805,-568.79,0.00023199,2]
[349369983,1737139845821,-500.0,0.00023199,2]
[349369985,1737139845832,-568.79,0.00023199,2]
[349369986,1737139845841,-500.0,0.00023199,2]
[349369987,1737139845850,-500.0,0.00023199,2]
[349369989,1737139845860,-568.79,0.00023199,2]
[349369990,1737139845869,-500.0,0.00023199,2]
[349369991,1737139845878,-500.0,0.00023199,2]
[349369992,1737139845887,-568.79,0.00023199,2]
[349369994,1737139845896,-491.95,0.00023199,2]
[349369996,1737139845905,-568.79,0.00023199,2]
[349369997,1737139845914,-568.79,0.00023199,2]
[349369998,1737139845924,-568.79,0.00023199,2]
[349369999,1737139845934,-568.79,0.00023199,2]
[349370001,1737139845943,-568.79,0.00023199,2]
[349370002,1737139845953,-568.79,0.00023199,2]
[349370003,1737139845963,-568.79,0.00023199,2]
[349370004,1737139845972,-568.79,0.00023199,2]
[349370005,1737139845982,-568.79,0.00023199,2]
[349370006,1737139845992,-568.79,0.00023199,2]
[349370007,1737139846002,-500.0,0.00023199,2]
[349370008,1737139846012,-500.0,0.00023199,2]
[349370009,1737139846022,-568.79,0.00023199,2]
[349370010,1737139846033,-500.0,0.00023199,2]
[349370011,1737139846043,-568.79,0.00023199,2]
[349370012,1737139846053,-487.81,0.00023199,2]
[349370013,1737139846062,-568.79,0.00023199,2]
[349370014,1737139846072,-568.79,0.00023199,2]
[349370015,1737139846081,-568.79,0.00023199,2]
[349370016,1737139846091,-568.99,0.00023199,2]
[349370017,1737139846101,-500.0,0.00023199,2]
[349370018,1737139846111,-500.0,0.00023199,2]
[349370019,1737139846120,-500.0,0.00023199,2]
[349370020,1737139846129,-313.66,0.00023199,2]
[349370021,1737139846139,-500.0,0.00023199,2]
[349370022,1737139846148,-500.0,0.00023199,2]
[349370023,1737139846158,-617.86,0.00023199,2]
[349370024,1737139846167,-500.0,0.00023199,2]
[349370025,1737139846177,-617.86,0.00023199,2]
[349370026,1737139846186,-500.0,0.00023199,2]
[349370027,1737139846196,-617.86,0.00023199,2]
[349370028,1737139846205,-500.0,0.00023199,2]
[349370029,1737139846215,-349.86,0.00023199,2]
[349370030,1737139846226,-500.0,0.00023199,2]
[349370031,1737139846236,-617.86,0.00023199,2]
[349370032,1737139846246,-500.0,0.00023199,2]
[349370033,1737139846255,-617.86,0.00023199,2]
[349370034,1737139846267,-500.0,0.00023199,2]
[349370035,1737139846276,-617.86,0.00023199,2]
[349370036,1737139846285,-617.86,0.00023199,2]
[349370037,1737139846297,-500.0,0.00023199,2]
[349370038,1737139846308,-617.86,0.00023199,2]
[349370039,1737139846318,-208.97,0.00023199,2]
[349370040,1737139846328,-617.86,0.00023199,2]
[349370041,1737139846337,-617.86,0.00023199,2]
[349370042,1737139846347,-617.86,0.00023199,2]
[349370043,1737139846356,-617.86,0.00023199,2]
[349370044,1737139846365,-617.86,0.00023199,2]
[349370045,1737139846374,-617.86,0.00023199,2]
[349370046,1737139846384,-617.86,0.00023199,2]
[349370047,1737139846394,-617.86,0.00023199,2]
[349370048,1737139846403,-500.0,0.00023199,2]
[349370049,1737139846411,-617.86,0.00023199,2]
[349370050,1737139846421,-500.0,0.00023199,2]
[349370051,1737139846430,-617.86,0.00023199,2]
[349370052,1737139846439,-500.0,0.00023199,2]
[349370053,1737139846448,-617.86,0.00023199,2]
[349370054,1737139846456,-500.0,0.00023199,2]
[349370055,1737139846466,-617.86,0.00023199,2]
[349370056,1737139846475,-500.0,0.00023199,2]
[349370057,1737139846484,-617.86,0.00023199,2]
[349370058,1737139846493,-617.86,0.00023199,2]
[349370059,1737139846502,-500.0,0.00023199,2]
[349370060,1737139846511,-500.0,0.00023199,2]
[349370061,1737139846521,-500.0,0.00023199,2]
[349370062,1737139846530,-457.79,0.00023199,2]
[349370063,1737139846540,-617.93,0.00023199,2]
[349370064,1737139846549,-500.0,0.00023199,2]
[349370065,1737139846558,-500.0,0.00023199,2]
[349370066,1737139846567,-500.0,0.00023199,2]
[349370067,1737139846577,-500.0,0.00023199,2]
[349370068,1737139846586,-500.0,0.00023199,2]
[349370069,1737139846598,-500.0,0.00023199,2]
[349370070,1737139846607,-428.58,0.00023199,2]
[349370071,1737139846616,-500.0,0.00023199,2]
[349370072,1737139846625,-500.0,0.00023199,2]
[349370073,1737139846634,-500.0,0.00023199,2]
[349370074,1737139846643,-500.0,0.00023199,2]
[349370075,1737139846652,-500.0,0.00023199,2]
[349370076,1737139846661,-500.0,0.00023199,2]
[349370077,1737139846670,-500.0,0.00023199,2]
[349370078,1737139846811,-500.0,0.00023199,2]
[349370079,1737139846822,-500.0,0.00023199,2]
[349370080,1737139846831,-500.0,0.00023199,2]
[349370081,1737139846841,-528.0004872,0.00023199,2]
[349370082,1737139846849,-500.0,0.00023199,2]
[349370083,1737139846859,-500.0,0.00023199,2]
[349370084,1737139846868,-500.0,0.00023199,2]
[349370085,1737139846877,-571.62,0.00023199,2]
[349370086,1737139846886,-221.63,0.00023199,2]
[349370087,1737139846895,-1637057.34730184,0.000232,2]
[349370088,1737139846905,-12458.15344362,0.000232,2]
[349370089,1737139846914,-151.359,0.000232,2]
[349370090,1737139846923,-2017.115,0.000232,2]
[349370091,1737139846932,-1288.759,0.000232,2]
[349370092,1737139846941,-212.66,0.000232,2]
[349370093,1737139846951,-635.0,0.000232,2]
[349370094,1737139846960,-569.29,0.000232,2]
[349370095,1737139846970,-260.549,0.000232,2]
[349370096,1737139846979,-1862.0,0.000232,2]
[349370097,1737139846988,-820.0,0.000232,2]
[349370098,1737139846998,-907.0,0.000232,2]
[349370099,1737139847007,-2945.0,0.000232,2]
[349370100,1737139847017,-1260.0,0.000232,2]
[349370101,1737139847026,-150.0,0.000232,2]
[349370102,1737139847035,-3981.0,0.000232,2]
[349370103,1737139847044,-537.0,0.000232,2]
[349370104,1737139847054,-250.0,0.000232,2]
[349370105,1737139847063,-3899.0,0.000232,2]
[349370106,1737139847073,-1174.0,0.000232,2]
[349370107,1737139847083,-150.0,0.000232,2]
[349370108,1737139847092,-163.091,0.000232,2]
[349370109,1737139847101,-1531515.83722286,0.000232,2]
[349370110,1737139847281,-247.08366428,0.000232,2]
[349370111,1737139847300,-500.0,0.00023196,2]
[349370112,1737139847312,-2333.81309861,0.000232,2]
[349370113,1737139847403,-500.0,0.00023198,2]
[349370114,1737139847412,-500.0,0.00023199,2]
[349370115,1737139847421,-500.0,0.00023199,2]
[349370116,1737139847431,-500.0,0.00023199,2]
[349370117,1737139847439,-500.0,0.00023199,2]
[349370118,1737139847449,-500.0,0.00023199,2]
[349370119,1737139847457,-10219.77195177,0.000232,2]
[349370120,1737139847468,-210166.82914079,0.000232,2]
[349370121,1737139847504,-4971.74782959,0.000232,2]
[349370122,1737139847515,-5663.00549854,0.000232,2]
[349370123,1737139847526,-13201.90983459,0.000232,2]
[349370124,1737139847537,-669.92874241,0.000232,2]
[349370125,1737139847548,-800.89909356,0.000232,2]
[349370126,1737139847566,-500.0,0.00023199,2]
[349370127,1737139847575,-3407.79298001,0.000232,2]
[349370128,1737139847694,-387.6000015,0.00023199,2]
[349370129,1737139847706,-112.3999985,0.00023199,2]
[349370130,1737139847717,-500.0,0.00023199,2]
[349370131,1737139847727,-500.0,0.00023199,2]
[349370132,1737139847737,-487.14334255,0.00023199,2]
[349370133,1737139847746,-168.0,0.000232,2]
[349370134,1737139847756,-675160.67248821,0.000232,2]
[349370135,1737139847767,-2301007.50941359,0.000232,2]
[349370136,1737139847830,-4628.81596035,0.000232,2]
[349370137,1737139847884,-286.94222761,0.00023197,2]
[349370138,1737139847895,-241.07777239,0.00023197,2]
[349370139,1737139847904,-170958.92222861,0.000232,2]
[349370142,1737139999555,1000.0,0.000245,30]
[349370144,1737140038108,2000.0,0.000245,30]
[349370149,1737140126981,184.47,0.00016712,2]
[349370156,1737140487466,241.02,0.00010137,2]
[349370157,1737140487679,241.02,0.00016813,2]
[349370164,1737140830139,-993.84,0.00019899,2]
[349370165,1737140830160,-257.17040329,0.00020906,2]
[349370166,1737140830180,-257.17040327,0.00020943,2]
[349370167,1737140830204,-165.80330801,0.00020979,2]
[349370168,1737140837099,-91.36709526,0.00020979,2]
[349370169,1737140837121,-1000.0,0.00021006,2]
[349370170,1737140837143,-199.0,0.00021063,2]
[349370171,1737140837165,-4938.64050153,0.00021064,2]
[349370181,1737141025147,389.28342733,0.00018994,2]
[349370182,1737141025170,372.42140739,0.00018994,2]
[349370196,1737141032368,-229.17516528,0.00018994,2]
[349370197,1737141032378,-5633.62,0.00020914,2]
[349370198,1737141032387,-21924.79,0.00020975,2]
[349370199,1737141032397,-568.61,0.00020983,2]
[349370200,1737141032406,-250.0,0.00021017,2]
[349370201,1737141032416,-18961.35949847,0.00021064,2]
[349370202,1737141032425,-529.92,0.00021079,2]
[349370203,1737141032435,-165.44,0.00021089,2]
[349370204,1737141032445,-293.1096,0.00021093,2]
[349370205,1737141032454,-281.81,0.00021139,2]
[349370206,1737141032464,-250.0,0.00021193,2]
[349370207,1737141032473,-2525.0,0.000212,2]
[349370208,1737141032481,-990.88,0.00021258,2]
[349370209,1737141032491,-5959.0,0.00021324,2]
[349370210,1737141032502,-150.0,0.00021346,2]
[349370211,1737141032512,-200.0,0.00021391,2]
[349370212,1737141032521,-688.57930177,0.00021788,2]
[349370213,1737141032531,-177.01,0.00021888,2]
[349370214,1737141032540,-300.0,0.000219,7]
[349370215,1737141032549,-200.86967708,0.000219,3]
[349370216,1737141032558,-907.512,0.00021961,2]
[349370217,1737141032568,-250.0,0.00021961,2]
[349370218,1737141032577,-405.0,0.00021997,2]
[349370219,1737141032586,-248.0,0.00022,2]
[349370220,1737141032601,-600.0,0.00022,8]
[349370221,1737141032612,-189.67,0.00022032,2]
[349370222,1737141032621,-7883.84824068,0.00022098,2]
[349370223,1737141032630,-17960.38,0.00022098,2]
[349370224,1737141032640,-3579.86579984,0.00022099,2]
[349370225,1737141032649,-312.80282956,0.00022099,2]
[349370226,1737141032661,-1000.0,0.000221,8]
[349370227,1737141032671,-200.86967707,0.00022122,3]
[349370228,1737141032689,-500.0,0.00022173,2]
[349370229,1737141032700,-160.41794229,0.00022173,2]
[349370230,1737141032710,-248.0,0.00022192,2]
[349370232,1737141032719,-500.0,0.00022198,2]
[349370234,1737141032729,-500.0,0.00022198,2]
[349370236,1737141032738,-221.63,0.00022198,2]
[349370238,1737141032748,-500.0,0.00022198,2]
[349370240,1737141032757,-500.0,0.00022198,2]
[349370242,1737141032767,-500.0,0.00022198,2]
[349370244,1737141032776,-500.0,0.00022198,2]
[349370246,1737141032786,-500.0,0.00022198,2]
[349370248,1737141032795,-500.0,0.00022198,2]
[349370250,1737141032804,-350.05158413,0.00022198,2]
[349370252,1737141032814,-568.22883697,0.00022198,2]
[349370253,1737141032823,-500.0,0.00022198,2]
[349370255,1737141032832,-500.0,0.00022198,2]
[349370257,1737141032841,-500.0,0.00022198,2]
[349370259,1737141032851,-500.0,0.00022198,2]
[349370261,1737141032861,-500.0,0.00022198,2]
[349370263,1737141032871,-500.0,0.00022198,2]
[349370265,1737141032880,-500.0,0.00022198,2]
[349370267,1737141032889,-500.0,0.00022198,2]
[349370269,1737141032899,-500.0,0.00022198,2]
[349370271,1737141032908,-500.0,0.00022198,2]
[349370273,1737141032917,-500.0,0.00022198,2]
[349370275,1737141032926,-500.0,0.00022198,2]
[349370277,1737141032935,-500.0,0.00022198,2]
[349370279,1737141032944,-500.0,0.00022198,2]
[349370281,1737141032954,-332.29,0.00022198,2]
[349370283,1737141032963,-500.0,0.00022198,2]
[349370285,1737141032972,-500.0,0.00022198,2]
[349370286,1737141032982,-500.0,0.00022198,2]
[349370287,1737141032991,-500.0,0.00022198,2]
[349370288,1737141033001,-329.66,0.00022198,2]
[349370289,1737141033014,-500.0,0.00022198,2]
[349370290,1737141033026,-500.0,0.00022198,2]
[349370291,1737141033037,-500.0,0.00022198,2]
[349370292,1737141033049,-553.08,0.00022198,2]
[349370293,1737141033069,-500.0,0.00022198,2]
[349370294,1737141033084,-500.0,0.00022198,2]
[349370295,1737141033094,-500.0,0.00022198,2]
[349370296,1737141033105,-504.29210305,0.00022198,2]
[349370297,1737141033121,-500.0,0.00022198,2]
[349370298,1737141033134,-500.0,0.00022198,2]
[349370299,1737141033144,-500.0,0.00022198,2]
[349370300,1737141033154,-500.0,0.00022198,2]
[349370301,1737141033165,-412.45,0.00022198,2]
[349370302,1737141033182,-500.0,0.00022198,2]
[349370303,1737141033194,-500.0,0.00022198,2]
[349370304,1737141033204,-500.0,0.00022198,2]
[349370305,1737141033215,-500.0,0.00022198,2]
[349370306,1737141033225,-500.0,0.00022198,2]
[349370307,1737141033239,-500.0,0.00022198,2]
[349370308,1737141033256,-253.66,0.00022198,2]
[349370309,1737141033266,-500.0,0.00022198,2]
[349370310,1737141033276,-500.0,0.00022198,2]
[349370311,1737141033287,-500.0,0.00022198,2]
[349370312,1737141033299,-333.41,0.00022198,2]
[349370313,1737141033315,-624.65433575,0.00022198,2]
[349370314,1737141033326,-500.0,0.00022198,2]
[349370315,1737141033336,-500.0,0.00022198,2]
[349370316,1737141033355,-240.42,0.00022198,2]
[349370317,1737141033368,-500.0,0.00022198,2]
[349370318,1737141033378,-500.0,0.00022198,2]
[349370319,1737141033388,-500.0,0.00022198,2]
[349370320,1737141033397,-238.87223874,0.00022198,2]
[349370321,1737141033407,-500.0,0.00022198,2]
[349370322,1737141033417,-500.0,0.00022198,2]
[349370323,1737141033426,-500.0,0.00022198,2]
[349370324,1737141033437,-500.0,0.00022198,2]
[349370325,1737141033446,-500.0,0.00022198,2]
[349370326,1737141033456,-500.0,0.00022198,2]
[349370327,1737141033466,-500.0,0.00022198,2]
[349370328,1737141033476,-303.15697552,0.00022198,2]
[349370329,1737141033485,-500.0,0.00022198,2]
[349370330,1737141033495,-500.0,0.00022198,2]
[349370331,1737141033505,-500.0,0.00022198,2]
[349370332,1737141033516,-500.0,0.00022198,2]
[349370333,1737141033525,-500.0,0.00022198,2]
[349370334,1737141033535,-500.0,0.00022198,2]
[349370335,1737141033545,-500.0,0.00022198,2]
[349370336,1737141033555,-500.0,0.00022198,2]
[349370337,1737141033565,-500.0,0.00022198,2]
[349370338,1737141033576,-500.0,0.00022198,2]
[349370339,1737141033585,-484.05,0.00022198,2]
[349370340,1737141033600,-500.0,0.00022198,2]
[349370341,1737141033610,-500.0,0.00022198,2]
[349370342,1737141033620,-501.9449335,0.00022198,2]
[349370343,1737141033630,-583.46291414,0.00022198,2]
[349370344,1737141033641,-515.582073,0.00022198,2]
[349370345,1737141033651,-500.0,0.00022198,2]
[349370346,1737141033661,-500.0,0.00022198,2]
[349370347,1737141033672,-500.0,0.00022198,2]
[349370348,1737141033682,-500.0,0.00022198,2]
[349370349,1737141033692,-500.0,0.00022198,2]
[349370350,1737141033701,-232.03672289,0.00022198,2]
[349370351,1737141033711,-505.03813631,0.00022198,2]
[349370352,1737141033720,-269.55,0.00022198,2]
[349370353,1737141033730,-500.0,0.00022198,2]
[349370354,1737141033739,-172.42,0.00022198,2]
[349370355,1737141033749,-500.0,0.00022198,2]
[349370356,1737141033759,-500.0,0.00022198,2]
[349370357,1737141033769,-500.0,0.00022198,2]
[349370358,1737141033779,-500.0,0.00022198,2]
[349370359,1737141033789,-500.0,0.00022198,2]
[349370360,1737141033799,-640.40696026,0.00022198,2]
[349370361,1737141033809,-500.0,0.00022198,2]
[349370362,1737141033818,-162.2,0.00022198,2]
[349370363,1737141033828,-500.0,0.00022198,2]
[349370364,1737141033837,-580.25,0.00022198,2]
[349370365,1737141033847,-506.45,0.00022198,2]
[349370366,1737141033857,-506.45,0.00022198,2]
[349370367,1737141033867,-500.0,0.00022198,2]
[349370368,1737141033876,-500.0,0.00022198,2]
[349370369,1737141033886,-500.0,0.00022198,2]
[349370370,1737141033897,-500.0,0.00022198,2]
[349370371,1737141033906,-500.0,0.00022198,2]
[349370372,1737141033916,-500.0,0.00022198,2]